[Event "10th Amsterdam Science Park 2022"]
[Site "Amsterdam"]
[Date "2022.07.24"]
[Round "7.10"]
[White "Tan, Kevin"]
[Black "Golbach, Floris"]
[Result "0-1"]
[ECO "A00"]
[WhiteElo "2209"]
[BlackElo "2012"]
[Annotator "TA"]
[PlyCount "54"]
[EventDate "2022.07.18"]
[EventCountry "NED"]
[SourceTitle "playchess.com"]
[Source "ChessBase"]
[SourceQuality "1"]
[TimeControl "5400+30"]

{[%evp 9,54,-75,-57,-59,-18,-18,-24,-55,-23,-65,-7,-42,-27,-101,-100,-130,-106,-119,-76,-67,-63,-139,-103,-197,-109,-109,-105,-71,-307,-634,-629,-635,-635,-620,-620,-626,-621,-604,-572,-522,-494,-832,-819,-29996,-1428,-1332,-1283]} 1. Nf3 {[%emt 0:00:10]} c5 {[%emt 0:00:40]} 2. Nc3 {[%emt 0:14:04]} Nc6 {[%emt 0:01:08]} 3. b3 {[%emt 0:05:57]} d5 {[%emt 0:07:37]} 4. Bb2 {[%emt 0:02:12]} Nf6 {[%emt 0:01:24] [#]} 5. g3 $146 {[%emt 0:01:18]} ({Predecessor:} 5. d4 cxd4 6. Nxd4 e5 7. Nxc6 bxc6 8. e3 Bb4 9. a3 Ba5 10. b4 Bc7 11. Ne2 {1-0 (65) Gerold,R (1479)-Ortner,J (1776) Burg Ortenberg 2018}) 5... Bg4 {[%emt 0:01:31][%cal Bc8g4,Bg4h5,Bh5g6][%mdl 32]} 6. Bg2 {[%emt 0:01:17] A00: Irregular Openings.} e6 {[%emt 0:00:17]} 7. h3 {[%emt 0:08:23]} Bh5 {[%emt 0:01:38]} 8. d3 {[%emt 0:06:20] Black has an edge.} Be7 {[%emt 0:11:52]} 9. Qd2 {[%emt 0:03:01]} a6 {[%emt 0:05:02]} ({Better is} 9... d4 $15 10. Nb1 O-O) 10. g4 {[%emt 0:05:16]} Bg6 {[%emt 0:00:16]} 11. g5 {[%emt 0:01:02] [#]} (11. Nh4 $11) 11... Nh5 $1 $17 {[%emt 0:04:22]} 12. h4 {[%emt 0:06:47]} Qc7 {[%emt 0:01:49]} 13. e3 {[%emt 0:03:01] Against Nf4} O-O-O {[%emt 0:08:09]} 14. O-O-O {[%emt 0:07:17]} Kb8 {[%emt 0:01:26]} 15. Na4 {[%emt 0:05:23]} (15. Kb1 $15) 15... f6 {[%emt 0:04:49]} 16. d4 {[%emt 0:05:23]} (16. Ba3 $17) 16... Nb4 {[%emt 0:07:33]} (16... cxd4 $19 17. Nxd4 Nxd4 18. Bxd4 Rc8) 17. Ba3 {[%emt 0:06:47]} Nxc2 {[%emt 0:10:18] Black is more active.} (17... Bxc2 $2 18. Bxb4 Bxd1 19. Ba5 $18) 18. Bxc5 {[%emt 0:01:01]} b6 $2 {[%emt 0:06:03] This move loses the game for White.} (18... e5 $17) 19. Bxb6 $2 {[%emt 0:02:33]} (19. gxf6 gxf6 20. Bxe7 Qxe7 21. Rdg1) 19... Ba3+ $19 {[%emt 0:00:56]} 20. Kb1 {[%emt 0:00:33]} Nxe3+ {[%emt 0:00:51][%mdl 64] Discovered Attack, Double Attack} 21. Ka1 {[%emt 0:00:09]} Nc2+ {[%emt 0:00:06]} 22. Kb1 {[%emt 0:00:04]} Nxd4+ {[%emt 0:00:05]} 23. Ka1 {[%emt 0:00:09]} Nc2+ {[%emt 0:00:23]} 24. Kb1 {[%emt 0:00:05]} Qc6 {[%emt 0:02:12] And now ...Bb4 would win.} 25. Qa5 {[%emt 0:03:01]} (25. Bf1 $142 Bb4 26. Qc1) 25... Rc8 {[%emt 0:01:24] ( -> ...Ne1+)} 26. Nd2 {[%emt 0:01:57]} Nb4+ {[%emt 0:00:54]} (26... Ne1+ $142 27. Ka1 {[#]} Qc1+ $3 {[%mdl 512]} 28. Rxc1 Rxc1+ 29. Nb1 Rxb1#) 27. Ka1 {[%emt 0:00:36]} Qc2 {[%emt 0:00:12] Weighted Error Value: White=0.89/Black=0.41} 0-1